Cogmind - Beta 9.2 @@@ ROGUE MODE // 2019.11.30 @ 23:16:28 Player: Suslik Result: Destroyed by L-61 Swordsman with Power Sword Performance ------------- Evolutions (6) 3000 Regions Visited (32) 6400 Robots Destroyed (376) 1880 Value Destroyed (18409) 18409 Prototype IDs (41) 820 Alien Tech Used (0) 0 Bonus (5607) 5607 TOTAL SCORE: 36116 Bonus ------- High Alert Combat Kills 2911 Follower Combat Kills 3753 Entered Garrisons 800 Used RIF Installer 2000 Network Hubs Disabled 800 Met Data Miner 300 A7 Reached Mainframe 300 Friendly Fire -5257 Cogmind --------- Core Integrity 0/1150 Matter 18/300 Energy 62/900 System Corruption 7% Temperature Cool (0) Movement Rolling (145) Ox5 Location -4/Armory Parts ------- > --- POWER (2) -------- (None) > --- PROPULSION (2) --- Compact Wheel Centrium Wheel > --- UTILITY (13) ----- Large Storage Unit Large Storage Unit High-capacity Storage Unit High-capacity Storage Unit High-capacity Storage Unit High-capacity Storage Unit Advanced Energy Well Experimental Signal Interpreter EM Dispersion Field > --- WEAPON (2) ------- (None) > --- INVENTORY (48) --- Particle Reactor Improved Treads Improved Treads Medium Treads Medium Treads Wheel Compact Wheel Fusion Compressor High-capacity Storage Unit High-capacity Matter Pod (200) Advanced Melee Analysis Suite Launcher Loader Quantum Capacitor Experimental Phase Shifter Experimental Phase Shifter Improved Core Shielding Improved Weapon Shielding Heavy Armor Plating Damper Plating Experimental Thermal Shield EM Dispersion Field Relay Coupler [NC] (46) Improved System Backup Module Advanced Variable Charge Gun EMDS EMDS EMDS Heavy Neutron Cannon Enhanced Nova Cannon Enhanced Nova Cannon Improved Remote Datajack Greatsword Power Sword Phasing Sabre Force Lance Peak State ------------ > --- POWER ------------ Quantum Reactor Quantum Reactor > --- PROPULSION ------- Enhanced Biometal Leg Enhanced Biometal Leg > --- UTILITY ---------- Advanced Cooling System Large Storage Unit Large Storage Unit High-capacity Storage Unit High-capacity Storage Unit High-capacity Storage Unit High-capacity Storage Unit Long-range Sensor Array Experimental Signal Interpreter Damper Plating Advanced Hacking Suite > --- WEAPON ----------- EMDS > --- INVENTORY -------- Quantum Reactor Wheel Centrium Wheel Fusion Compressor High-capacity Storage Unit Advanced Energy Well High-capacity Matter Pod Advanced Melee Analysis Suite Launcher Loader Quantum Capacitor Experimental Phase Shifter Experimental Phase Shifter Improved Weapon Shielding Experimental Weapon Shielding Centrium Medium Armor Plating Damper Plating Experimental Thermal Shield EM Dispersion Field EM Dispersion Field EM Dispersion Field Relay Coupler [NC] Relay Coupler [NC] Relay Coupler [NC] Relay Coupler [NC] System Backup Module Advanced Variable Charge Gun EMDS EMDS EMDS EMDS Heavy Neutron Cannon Shock Bomb Launcher Heavy Shock Bomb Launcher Improved Remote Datajack Power Sword Phasing Sabre Force Lance [Rating: 130] Favorites ----------- Power Quantum Reactor Engine Improved Ion Engine Power Core Enhanced Nuclear Core Reactor Quantum Reactor Propulsion Armored Huge Wheel Treads Light Treads Leg Enhanced Biometal Leg Wheel Armored Huge Wheel Utility High-capacity Storage Unit Device Long-range Sensor Array Storage High-capacity Storage Unit Processor Experimental Signal Interpreter Hackware Advanced Hacking Suite Protection Damper Plating Weapon EM Pulse Cannon Energy Gun Medium Laser Energy Cannon EM Pulse Cannon Ballistic Gun Light Assault Rifle Ballistic Cannon Improved Light Cannon Launcher Shock Bomb Launcher Special Weapon Improved Remote Datajack Slashing Weapon Power Sword Piercing Weapon Force Lance Build | -11 -10 -10 -10 -9 -8 -8 -8 -8 -7 -7 -7 -7 -7 -7 -6 -6 -6 -6 -6 -6 -6 -5 -5 -5 -5 -5 -5 -5 -4 -4 -4 -4 ------- Run | Scr Mat Min Exi Min Mat Gar Mat Gar Fac Was Fac Low Low Dat Pro Fac Was Fac Gar Fac Gar Fac Was Fac Ext Cet Arc Hub Fac Was Fac Arm Slots Evolved 12 | . . . . . 4 . . . 2 . . . . . . 2 . . . . . 2 . . . . . . 2 . . . Power 1 | . . . . . . . . . . . . . . . . . . . . . . . . . . . . . 1 . . . Propulsion . | . . . . . . . . . . . . . . . . . . . . . . . . . . . . . . . . . Utility 11 | . . . . . 4 . . . 2 . . . . . . 2 . . . . . 2 . . . . . . 1 . . . Weapon . | . . . . . . . . . . . . . . . . . . . . . . . . . . . . . . . . . Parts Attached 533 | . 10 7 1 4 28 31 2 12 42 10 3 6 . . 12 24 18 10 8 36 15 19 4 3 22 19 1 72 9 9 75 21 Power 28 | . 1 1 . . 1 1 . . . 1 . . . . . 1 3 . 2 . 1 . . . . . . 3 1 . 8 4 Engine 8 | . 1 1 . . 1 1 . . . . . . . . . . 1 . . . . . . . . . . . . . 3 . Core 4 | . . . . . . . . . . . . . . . . 1 1 . . . 1 . . . . . . . . . 1 . Reactor 16 | . . . . . . . . . . 1 . . . . . . 1 . 2 . . . . . . . . 3 1 . 4 4 Propulsion 53 | . 2 1 . 2 3 4 2 . 3 . . . . . . . 2 3 . 2 . . . . . . . 5 . 4 14 6 Treads 17 | . 2 . . 2 3 4 2 . 2 . . . . . . . . . . . . . . . . . . . . . 2 . Leg 7 | . . . . . . . . . . . . . . . . . . . . . . . . . . . . 2 . 2 1 2 Wheel 29 | . . 1 . . . . . . 1 . . . . . . . 2 3 . 2 . . . . . . . 3 . 2 11 4 Hover . | . . . . . . . . . . . . . . . . . . . . . . . . . . . . . . . . . Flight . | . . . . . . . . . . . . . . . . . . . . . . . . . . . . . . . . . Utility 206 | . 2 1 1 . 12 6 . 4 10 7 3 4 . . 2 15 6 2 3 21 5 12 3 1 5 9 . 30 5 3 27 7 Device 72 | . . . . . . . . . . 1 . 1 . . . 2 2 . 1 11 4 6 . . 3 4 . 19 3 . 12 3 Storage 20 | . 1 1 1 . . 1 . 1 . 2 . . . . . 3 . . 1 . . 1 1 . 2 3 . . . . 1 1 Processor 3 | . . . . . . . . . . . . . . . . . 1 . . 1 . . . . . . . 1 . . . . Hackware 25 | . . . . . . 1 . . 3 . 2 1 . . . 2 . . . . . 3 . 1 . 1 . 4 1 2 4 . Protection 86 | . 1 . . . 12 4 . 3 7 4 1 2 . . 2 8 3 2 1 9 1 2 2 . . 1 . 6 1 1 10 3 Artifact . | . . . . . . . . . . . . . . . . . . . . . . . . . . . . . . . . . Weapon 246 | . 5 4 . 2 12 20 . 8 29 2 . 2 . . 10 8 7 5 3 13 9 7 1 2 17 10 1 34 3 2 26 4 Energy Gun 3 | . . . . . . . . . 2 . . . . . . . . . . . . . . . . 1 . . . . . . Energy Cannon 66 | . . . . . 2 5 . 1 2 . . . . . 2 . 3 . . 5 3 1 . 1 8 2 1 17 1 . 10 2 Ballistic Gun . | . . . . . . . . . . . . . . . . . . . . . . . . . . . . . . . . . Ballistic Cannon 28 | . 5 2 . 1 5 . . 1 6 . . 1 . . 3 2 2 . . . . . . . . . . . . . . . Launcher 36 | . . 2 . 1 2 8 . 4 4 . . . . . 2 1 . . 1 . 3 . . . . 4 . 1 . . 3 . Special Weapon 39 | . . . . . . . . . 6 . . 1 . . 1 3 . 2 . 2 . 3 . . 7 1 . 7 1 1 4 . Impact Weapon . | . . . . . . . . . . . . . . . . . . . . . . . . . . . . . . . . . Slashing Weapon 52 | . . . . . 3 7 . 2 9 1 . . . . 2 1 . 3 1 3 2 1 . 1 2 1 . 3 1 . 7 2 Piercing Weapon 22 | . . . . . . . . . . 1 . . . . . 1 2 . 1 3 1 2 1 . . 1 . 6 . 1 2 . Special Melee Weapon . | . . . . . . . . . . . . . . . . . . . . . . . . . . . . . . . . . Unidentified Prototypes 15 | . . . . . . . . . 3 1 . . . . . . 2 . . . . . . 1 . 2 . 6 . . . . Parts Lost 73 | . 1 2 . . 4 4 . 5 3 . . . . . 2 1 . . . . 2 1 . . . 1 . 6 . 3 32 6 Power 11 | . . 1 . . . . . . . . . . . . . . . . . . 1 . . . . . . 1 . . 7 1 Propulsion 17 | . . 1 . . 1 2 . . . . . . . . . . . . . . . . . . . . . 1 . 2 10 . Utility 35 | . 1 . . . 3 2 . 3 2 . . . . . 1 1 . . . . 1 1 . . . . . 2 . 1 13 4 Weapon 10 | . . . . . . . . 2 1 . . . . . 1 . . . . . . . . . . 1 . 2 . . 2 1 Highest Loss Streak 17 | . 1 1 . . 2 2 . 3 2 . . . . . 1 1 . . . . 2 1 . . . 1 . 4 . 2 17 6 Average Slot Usage (%) 82 | . 92 96 92 85 85 90 90 79 72 71 69 69 69 69 68 75 79 79 80 85 83 81 82 82 82 82 82 85 84 88 86 86 Engine 3 | . 14 11 14 14 9 9 9 9 7 5 . . . . . . . . . . . . . . . . . . . . . . Core 1 | . . . . . . . . . . . . . . . . 4 2 . . . 3 5 5 5 5 5 5 2 . . . . Reactor 3 | . . . . . . . . . . 1 7 7 7 7 7 1 3 6 6 6 3 . . . . . . 2 8 10 8 9 Treads 5 | . 26 18 14 25 18 18 18 18 11 . . . . . . . . . . . . . . . . . . . . . . 4 Leg 1 | . 1 . . . . . . . . . . . . . . . . . . . . . . . . . . 4 10 6 3 . Wheel 4 | . . 8 14 2 . . . . 1 7 7 7 7 7 7 6 6 6 6 6 6 5 5 5 5 5 5 3 . 3 5 4 Device 2 | . . . . . . . . . . . . . . . . . . . . 5 3 6 5 5 5 3 . 4 6 5 5 3 Storage 28 | . 16 28 21 14 9 14 18 18 15 23 30 30 30 30 30 33 40 40 40 40 40 35 35 35 35 35 35 35 31 31 31 34 Processor 2 | . . . . . . . . . . . . . . . . . . . . 5 6 5 5 5 5 5 5 5 5 5 5 5 Hackware 2 | . . . . . . . . . 4 . . . . . . 1 6 5 . . . 3 5 5 5 7 11 6 5 9 8 . Protection 10 | . 4 . . . 31 30 27 16 15 17 6 7 7 7 7 12 5 6 12 6 6 4 5 5 5 5 5 5 7 4 7 17 Energy Cannon 2 | . . . . . 4 8 9 1 . 7 7 7 7 7 3 . . . . 1 1 2 . 3 3 1 4 4 5 . 1 1 Ballistic Cannon 3 | . 21 27 28 28 5 . . 8 6 . . . 7 7 4 5 . 4 . . . . . . . . . . . . . . Slashing Weapon 4 | . . . . . 7 6 9 3 6 5 7 6 . . 5 5 . 6 10 8 5 4 . 1 4 3 5 2 . . . 3 Piercing Weapon 1 | . . . . . . . . . . 1 . . . . . . 5 . 1 1 4 . 4 3 . 1 . 2 1 4 2 . Naked Turns . | . . . . . . . . . . . . . . . . . . . . . . . . . . . . . . . . . Heaviest Build 269 | 10 33 61 91 91 122 149 141 145 179 229 229 234 234 234 234 254 204 199 185 201 197 196 208 214 215 227 225 252 269 269 269 258 Greatest Support 60 | 20 40 40 16 43 45 45 43 43 51 28 28 28 28 28 28 28 28 28 28 28 28 28 28 28 28 28 28 60 60 60 60 51 Greatest Overweight (x) 22 | . . 3 5 5 2 3 3 3 6 8 8 8 8 8 8 9 7 7 6 11 7 6 7 7 7 8 8 15 4 9 22 15 Average Overweight (x) 5 | . . 2 3 2 2 2 3 2 3 6 7 8 8 8 8 7 6 6 6 6 6 5 6 7 7 7 7 5 4 5 6 5 Largest Inventory Capacity 64 | 6 12 18 24 24 24 32 32 52 32 46 46 46 46 46 46 64 44 44 50 44 44 44 46 46 46 48 48 48 48 48 48 48 Average Capacity 39 | 6 7 17 19 24 24 28 32 32 32 40 46 46 46 46 46 51 44 44 44 44 44 44 45 46 46 47 48 48 48 48 48 48 Most Carried 52 | 6 7 12 18 20 24 32 32 32 32 46 46 46 46 46 46 52 44 44 44 44 44 44 46 46 46 48 48 48 48 47 48 48 Average Carried 38 | 6 5 10 11 18 23 27 31 28 31 39 45 45 45 46 44 48 43 43 43 43 43 42 44 45 45 47 48 46 45 44 44 46 Final Capacity 48 | 6 12 18 24 24 24 32 32 32 32 46 46 46 46 46 46 44 44 44 44 44 44 44 46 46 46 48 48 48 48 48 48 48 Final Carried 48 | 6 7 11 18 20 24 32 32 30 32 46 46 45 46 46 45 44 43 44 44 44 44 40 46 46 46 48 48 48 47 46 46 44 Class Distribution -------------------- 47% | Bothacker-Mutant 32% | Hauler-Mutant 12% | Botlord-Mutant 5% | Mutant Dominant Class ---------------- Mutant | -10/Materials Mutant | -10/Mines Mutant | -10/Exiles Hauler-Mutant | -9/Mines Hauler-Mutant | -8/Materials Hauler-Mutant | -8/Garrison Hauler-Mutant | -8/Materials Hauler-Mutant | -8/Garrison Bothacker-Mutant | -7/Factory Bothacker-Mutant | -7/Waste Bothacker-Mutant | -7/Factory Bothacker-Mutant | -7/Lower Caves Bothacker-Mutant | -7/Lower Caves Bothacker-Mutant | -7/Data Miner Bothacker-Mutant | -6/Proximity Caves Bothacker-Mutant | -6/Factory Bothacker-Mutant | -6/Waste Bothacker-Mutant | -6/Factory Bothacker-Mutant | -6/Garrison Bothacker-Mutant | -6/Factory Bothacker-Mutant | -6/Garrison Botlord-Mutant | -5/Factory Botlord-Mutant | -5/Waste Botlord-Mutant | -5/Factory Botlord-Mutant | -5/Extension Botlord-Mutant | -5/Cetus Botlord-Mutant | -5/Archives Bothacker-Mutant | -5/Hub_04(d) Hauler-Mutant | -4/Factory Hauler-Mutant | -4/Waste Hauler-Mutant | -4/Factory Hauler-Mutant | -4/Armory Resources | -11 -10 -10 -10 -9 -8 -8 -8 -8 -7 -7 -7 -7 -7 -7 -6 -6 -6 -6 -6 -6 -6 -5 -5 -5 -5 -5 -5 -5 -4 -4 -4 -4 ----------- Run | Scr Mat Min Exi Min Mat Gar Mat Gar Fac Was Fac Low Low Dat Pro Fac Was Fac Gar Fac Gar Fac Was Fac Ext Cet Arc Hub Fac Was Fac Arm Matter Collected 9903 | 202 326 317 . 60 660 563 . 305 558 248 40 60 6 . 207 224 276 181 105 460 215 53 232 15 454 315 10 1023 133 241 2131 283 Remotely 39 | . . . . . . . . . . . . . . . . . . . . . . . . . 39 . . . . . . . Salvage Created 22308 | 68 343 284 . 21 1056 794 . 926 657 273 . . 23 . 304 862 912 390 1061 724 593 133 591 . 116 454 . 3457 258 1755 5458 795 Parts 887 | 3 27 24 . 2 67 60 . 38 30 11 . . 3 . 20 50 14 12 23 29 29 9 10 . 4 17 . 171 6 36 162 30 Haulers Intercepted 2 | . 2 . . . . . . . . . . . . . . . . . . . . . . . . . . . . . . . Recyclers Shooed 5 | . . . . . 2 . . . . . . . . . . 1 . . . 1 . . . . . . . . . . 1 . Parts Field Recycled . | . . . . . . . . . . . . . . . . . . . . . . . . . . . . . . . . . Retrieved Matter . | . . . . . . . . . . . . . . . . . . . . . . . . . . . . . . . . . Parts Self-Destructed 72 | . . . . . . . . . . . . 28 9 . 35 . . . . . . . . . . . . . . . . . Prevented 1 | . . . . . . . . . . . . . . . 1 . . . . . . . . . . . . . . . . . Kills | -11 -10 -10 -10 -9 -8 -8 -8 -8 -7 -7 -7 -7 -7 -7 -6 -6 -6 -6 -6 -6 -6 -5 -5 -5 -5 -5 -5 -5 -4 -4 -4 -4 ------- Run | Scr Mat Min Exi Min Mat Gar Mat Gar Fac Was Fac Low Low Dat Pro Fac Was Fac Gar Fac Gar Fac Was Fac Ext Cet Arc Hub Fac Was Fac Arm Combat Hostiles Destroyed 313 | . 13 12 . 2 28 26 . 17 6 . . . 1 . 8 20 . 4 13 7 12 3 2 . . 5 . 46 4 6 68 10 Melee 98 | . . . . . 17 8 . . 1 . . . . . 2 18 . 4 1 5 8 3 2 . . 1 . 16 . 6 4 2 Guns 1 | . 1 . . . . . . . . . . . . . . . . . . . . . . . . . . . . . . . Cannons 62 | . 12 8 . . 2 1 . 1 . . . . 1 . 2 . . . . . 1 . . . . . . 12 2 . 16 4 AOE 83 | . . 4 . 2 9 16 . 14 3 . . . . . 4 2 . . 9 . 1 . . . . . . 7 . . 12 . Classes Destroyed 17 | 1 5 . . . 4 . . . 2 1 . . . . . . . . . . . . 1 . . . . 2 . . . 1 Worker 14 | . . . . . 1 . . . 1 . . . . . . . . . . 1 . . . . . . . 6 . . 5 . Builder 8 | . 1 . . . . . . . 2 . . . . . . 1 . . . . . . . . . . . 2 . . 2 . Hauler 2 | . 2 . . . . . . . . . . . . . . . . . . . . . . . . . . . . . . . Recycler 10 | 1 . 1 . . . . . . 2 . . . . . . . . 1 . 2 . . . . . . . . . . 3 . Operator 3 | . . . . . 1 . . . . . . . . . . . . . . . . . . . . . . 2 . . . . Watcher 12 | . 1 . . . 2 . . . . . . . . . . . . . . 1 . . . . . . . 5 . . 1 2 Swarmer 77 | . 5 6 . 2 12 15 . . 1 . . . 1 . 3 11 . . 3 . 4 . . . . . . 5 . . 9 . Grunt 125 | . 8 6 . . 9 6 . 17 5 . . . . . . 3 . 3 10 1 4 . . . . 1 . 10 4 . 35 3 Brawler 3 | . . . . . . . . . . . . . . . . . . . . . . . . . . . . 1 . . 2 . Duelist 10 | . . . . . . . . . 1 . . . . . 2 . . . . . 2 . . . . . . . . . 4 1 Protector 5 | . . . . . . . . . . . . . . . . . . . . . . . . . . . . 5 . . . . Sentry 31 | . . . . . 6 4 . . . . . . . . 1 3 . . . 2 . . . . . . . 4 . . 9 2 Specialist 2 | . . . . . . . . . . . . . . . . . . . . . . . . . . . . . . . . 2 Hunter 15 | . . . . . 1 1 . . . . . . . . 1 1 . 1 . . 1 . . . . . . 4 . . 5 . Programmer 24 | . . . . . . . . . 1 . . . . . 1 2 . . . 4 1 3 . . . . . 6 . . 4 2 Compactor 8 | . . . . . . . . . . . . . . . . . . . . . . . 2 . . . . . . 6 . . Cetus Guard 4 | . . . . . . . . . . . . . . . . . . . . . . . . . . 4 . . . . . . Lightning 12 | . . . . . . . . . . . . . . . . . . . . . . . . . . . . 12 . . . . Wasp 3 | . . . . . . . . . . . . . . . . . . . . . . . . . 3 . . . . . . . Thug 1 | . . . . . . . . . . . . . . . . . . . . . . . 1 . . . . . . . . . Martyr 6 | . . . . . . . . . . 1 . . . . . . 3 . . . . . . . . . . . . . 2 . Best Kill Streak 13 | 1 5 5 . 2 5 5 . 4 7 . . . 1 . 3 5 . 2 13 1 3 2 1 . . 4 . 6 4 1 9 4 Combat Bots Only 13 | . 5 5 . 2 5 5 . 4 4 . . . 1 . 3 5 . 2 13 1 3 2 1 . . 4 . 4 4 1 7 3 Max Kills in Single Turn 4 | 1 1 2 . 2 4 3 . 2 2 1 . . 1 . 3 2 1 1 3 1 1 1 1 . 1 2 . 3 1 1 4 1 Gunslinging . | . . . . . . . . . . . . . . . . . . . . . . . . . . . . . . . . . Exploded 4 | . . 2 . 2 4 3 . 2 1 . . . . . 3 1 . . 3 . 1 . . . . . . 2 . . 3 . Melee 1 | . . . . . 1 1 . . 1 . . . . . 1 1 . 1 1 1 1 1 1 . . 1 . 1 . 1 1 1 Uniques/NPCs Destroyed 1 | . . . . . . . . . . . . . . . . . . . . . . . . . . 1 . . . . . . A7 (-5/Cetus) Combat | -11 -10 -10 -10 -9 -8 -8 -8 -8 -7 -7 -7 -7 -7 -7 -6 -6 -6 -6 -6 -6 -6 -5 -5 -5 -5 -5 -5 -5 -4 -4 -4 -4 -------- Run | Scr Mat Min Exi Min Mat Gar Mat Gar Fac Was Fac Low Low Dat Pro Fac Was Fac Gar Fac Gar Fac Was Fac Ext Cet Arc Hub Fac Was Fac Arm Damage Taken 24721 | . 491 421 . 60 1616 804 . 727 1006 . 55 . . . 957 2173 . 139 115 509 1564 497 20 . . 351 110 3252 309 143 7588 1814 Core 2344 | . 57 106 . 6 83 28 . 95 43 . . . . . 9 90 . 21 39 58 182 . . . . 45 24 269 . . 985 204 Absorbed by Shields 86 | . . . . . . . . . . . . . . . . . . . . . 86 . . . . . . . . . . . Core Remaining (%) 67 | 100 . . . 32 . . . 62 . . . . . . 92 . . . . . 54 . . . . . . 66 . . . . Volleys Fired 638 | 2 44 24 . 2 17 33 . 37 22 . . . 2 . 21 15 . 4 9 8 16 6 6 1 56 8 9 101 14 9 141 31 Largest 2 | 2 2 2 . 1 2 2 . 2 2 . . . 1 . 2 1 . 1 1 2 2 1 1 1 1 2 1 2 1 1 1 1 Hottest 162 | 70 78 78 . 30 126 126 . 107 126 . . . 48 . 126 48 . 30 36 150 150 30 30 30 110 72 81 162 70 40 70 70 Shots Fired 761 | 4 88 44 . 2 26 36 . 39 23 . . . 2 . 29 15 . 4 8 14 20 6 6 1 56 13 9 121 14 9 141 31 Gun 18 | 4 14 . . . . . . . . . . . . . . . . . . . . . . . . . . . . . . . Cannon 463 | . 74 40 . . 18 8 . 3 3 . . . 2 . 23 4 . . . 12 8 . . . 17 . 9 93 11 . 107 31 Launcher 147 | . . 4 . 2 8 28 . 36 6 . . . . . 2 7 . . 8 . 12 . . . . 10 . 2 . . 22 . Special 133 | . . . . . . . . . 14 . . . . . 4 4 . 4 . 2 . 6 6 1 39 3 . 26 3 9 12 . Kinetic 152 | 2 81 40 . . 14 . . 2 1 . . . 2 . 6 4 . . . . . . . . . . . . . . . . Thermal 39 | 2 7 . . . . . . . . . . . . . . . . . . . . . . . 14 . . 16 . . . . Explosive 14 | . . 4 . 2 1 5 . . . . . . . . 2 . . . . . . . . . . . . . . . . . Electromagnetic 423 | . . . . . 11 31 . 37 8 . . . . . 17 7 . . 8 12 20 . . . 3 10 9 79 11 . 129 31 Robot Hit Streak 17 | 3 10 5 . . 8 16 . 9 12 . . . . . 5 5 . 4 5 5 5 6 3 2 8 10 3 17 8 9 16 5 Robot Miss Streak 5 | . 3 3 . . 1 3 . 3 2 . . . 2 . 5 2 . . 1 4 1 . 1 . 1 1 2 3 2 1 4 2 Penetration Max 1 | . . . . . . . . . . . . . . . . . . . . . . . . . . . . 1 . . 1 1 Secondary Targets . | . . . . . . . . . . . . . . . . . . . . . . . . . . . . . . . . . Capacitor 20 | . . . . . . . . . . . . . . . . . . . . . . . . . . . . . . . 19 1 Shots Hit Robots 957 | 3 48 22 . . 70 28 . 17 31 4 2 . . . 34 63 16 14 23 30 26 14 36 1 40 8 5 158 11 87 128 38 Core Hits 550 | 2 20 16 . 4 40 32 . 41 22 2 . . 2 . 22 35 7 6 35 11 19 4 6 . 2 8 . 85 5 12 98 14 Critical Hits 69 | . 1 . . . 3 1 . 2 . . 1 . . . . 1 1 . 1 1 1 2 5 . . . . 13 3 6 20 7 Critical Kills 26 | . 1 . . . 2 . . 1 . . . . . . . . . . . . 1 1 1 . . . . 7 1 . 7 4 Critical Parts Destroyed 31 | . . . . . 1 1 . 1 . . 1 . . . . 1 1 . 1 . . 1 2 . . . . 5 2 . 11 3 Melee Attacks 894 | . . . . . 108 28 5 4 44 4 9 1 . . 18 97 16 25 26 74 33 36 32 3 17 4 . 148 2 84 59 17 Impact . | . . . . . . . . . . . . . . . . . . . . . . . . . . . . . . . . . Slashing 550 | . . . . . 108 28 5 4 44 3 9 1 . . 18 97 . 23 14 55 8 25 . 3 17 1 . 48 2 . 20 17 Piercing 344 | . . . . . . . . . . 1 . . . . . . 16 2 12 19 25 11 32 . . 3 . 100 . 84 39 . Sneak Attacks 151 | . . . . . 4 1 . 2 3 3 1 . . . . 1 5 1 1 4 . . 32 . 4 3 . 1 . 79 6 . Combat Hostiles 112 | . . . . . 1 1 . 2 . . . . . . . . . . 1 . . . 28 . . . . . . 79 . . Follow-up Attacks 16 | . . . . . . . . . . . . . . . . . . . 2 3 6 . . . . . . 5 . . . . Damage Inflicted 48461 | 32 823 726 . 119 3098 1932 . 1931 1136 384 147 . 61 . 1187 2039 888 465 2426 1396 952 369 2023 . 516 746 241 8537 466 4797 8763 2261 Guns 92 | 32 60 . . . . . . . . . . . . . . . . . . . . . . . . . . . . . . . Cannons 12606 | . 763 446 . . 279 46 . 46 44 . . . 61 . 347 55 . . . 209 101 . . . 66 . 241 2702 422 . 5340 1438 Explosions 12039 | . . 280 . 113 852 1367 . 1676 573 . . . . . 348 121 . . 1201 . 249 . . . . 427 . 2550 44 . 2238 . Melee 23706 | . . . . . 1955 519 . 209 519 384 147 . . . 492 1863 888 465 1225 1187 602 369 2023 . 450 319 . 3285 . 4797 1185 823 Ramming 18 | . . . . 6 12 . . . . . . . . . . . . . . . . . . . . . . . . . . . Kinetic 1704 | 19 785 446 . . 195 . . 46 . . . . 61 . 97 55 . . . . . . . . . . . . . . . . Thermal 1834 | 13 38 . . . 19 84 . 283 . . . . . . 110 . . . 261 . . . . . . . . 745 44 . 237 . Explosive 1497 | . . 280 . 113 245 540 . . . . . . . . 238 . . . . . . . . . . . . . . . 81 . Electromagnetic 19702 | . . . . . 672 789 . 1393 617 . . . . . 250 121 . . 940 209 350 . . . 66 427 241 4507 422 . 7260 1438 Impact . | . . . . . . . . . . . . . . . . . . . . . . . . . . . . . . . . . Slashing 9526 | . . . . . 1955 519 . 209 519 333 147 . . . 492 1863 . 465 481 625 111 . . . 450 39 . 464 . . 31 823 Piercing 14180 | . . . . . . . . . . 51 . . . . . . 888 . 744 562 491 369 2023 . . 280 . 2821 . 4797 1154 . Highest Corruption 7 | . 4 4 4 4 . . . 1 1 1 1 1 1 1 2 . 3 3 3 4 4 . . . . . . 5 . 1 4 7 Average Corruption 2 | . 2 4 4 4 . . . 1 1 1 1 1 1 1 1 . 3 3 3 3 1 . . . . . . 3 . 1 1 4 Corruption Purged 3 | . . . . . . . . . . . . . . . . . . . . . 3 . . . . . . . . . . . Effects 220 | . 9 13 9 14 . . . 4 3 . . 3 2 1 12 . 7 16 7 49 7 . . . . . . 22 . 3 28 11 Message Errors 67 | . 1 4 3 2 . . . . 3 . . 2 1 . 4 . 2 4 2 16 5 . . . . . . 4 . 2 7 5 Matter Fused 39 | . 1 3 2 5 . . . . . . . . . . . . 3 5 1 10 . . . . . . . 4 . . 4 1 Heat Flow Errors 20 | . . 1 . 2 . . . . . . . . . . 1 . . 4 . 5 . . . . . . . 5 . . 1 1 Energy Discharges 33 | . 3 2 1 2 . . . 1 . . . 1 . . 3 . 1 2 . 5 1 . . . . . . 4 . 1 5 1 Data Loss (minor) 38 | . 4 . 3 2 . . . 3 . . . . . 1 3 . 1 1 3 11 . . . . . . . 2 . . 4 . Data Loss (major) 1 | . . . . . . . . . . . . . . . . . . . . . . . . . . . . 1 . . . . Targeting Errors 21 | . . 3 . 1 . . . . . . . . 1 . 1 . . . . 2 1 . . . . . . 2 . . 7 3 Weapon Failures 1 | . . . . . . . . . . . . . . . . . . . 1 . . . . . . . . . . . . . Overload Shots . | . . . . . . . . . . . . . . . . . . . . . . . . . . . . . . . . . Overflow Damage 2450 | . 3 3 . . 331 127 . 113 71 145 65 . . . 26 54 23 9 44 205 . . 161 . 79 41 . 461 . . 347 142 Projectiles 491 | . 3 3 . . . . . . 3 . . . . . . . . . . . . . . . . . . 188 . . 213 81 Explosions 433 | . . . . . 44 50 . 27 . . . . . . . . . . 1 . . . . . . . . 211 . . 100 . Melee 1526 | . . . . . 287 77 . 86 68 145 65 . . . 26 54 23 9 43 205 . . 161 . 79 41 . 62 . . 34 61 Knockbacks 19 | . 10 4 . . . . . 1 . . . . 1 . 1 2 . . . . . . . . . . . . . . . . Impact . | . . . . . . . . . . . . . . . . . . . . . . . . . . . . . . . . . Kinetic 18 | . 9 4 . . . . . 1 . . . . 1 . 1 2 . . . . . . . . . . . . . . . . Secondary 1 | . 1 . . . . . . . . . . . . . . . . . . . . . . . . . . . . . . . Self-Inflicted Damage 658 | . . 23 . 21 38 65 . 74 27 . . . . . 74 . . . . . 2 . . . . 1 . 37 . . 296 . Shots 44 | . . 1 . 1 2 10 . 5 2 . . . . . 3 . . . . . 2 . . . . 1 . 6 . . 11 . Rammed 2 | . . . . 1 1 . . . . . . . . . . . . . . . . . . . . . . . . . . . Targets Rammed 2 | . . . . 1 1 . . . . . . . . . . . . . . . . . . . . . . . . . . . Kicked . | . . . . . . . . . . . . . . . . . . . . . . . . . . . . . . . . . Crushed . | . . . . . . . . . . . . . . . . . . . . . . . . . . . . . . . . . Highest Temperature 416 | 40 285 125 . 278 153 195 . 198 185 . . . 28 . 416 96 . 245 72 306 324 26 13 13 220 46 214 302 54 64 379 409 Average Temperature 93 | 20 84 26 . 144 59 63 . 67 71 . . . 17 . 146 26 . 95 34 121 128 16 13 13 71 18 72 96 14 25 128 150 Received Heat Transfer 4512 | . 189 117 . . 549 180 . 369 171 . . . . . 141 414 . 9 54 144 108 48 9 . . 66 18 468 87 . 1296 75 Effects 12 | . . . . 1 . . . . . . . . . . 5 . . . . 1 . . . . . . 1 . . . 4 . Shutdowns 2 | . . . . . . . . . . . . . . . 1 . . . . . . . . . . . . . . . 1 . Energy Bleed 2 | . . . . 1 . . . . . . . . . . 1 . . . . . . . . . . . . . . . . . Interference 5 | . . . . . . . . . . . . . . . 2 . . . . 1 . . . . . . 1 . . . 1 . Matter Decay 1 | . . . . . . . . . . . . . . . 1 . . . . . . . . . . . . . . . . . Short Circuit 2 | . . . . . . . . . . . . . . . . . . . . . . . . . . . . . . . 2 . Siege Activations . | . . . . . . . . . . . . . . . . . . . . . . . . . . . . . . . . . Robots Corrupted 73 | . . . . . . 1 . 2 2 . . . . . . . . . 3 2 2 . . . . 4 . 14 2 . 36 5 Combat Hostiles 69 | . . . . . . 1 . 2 2 . . . . . . . . . 3 2 2 . . . . 4 . 11 2 . 36 4 Parts Fried 187 | . . . . . 3 2 . 6 1 . . . . . . . . . 8 3 5 . . . . 2 . 49 8 . 89 11 Impact Corruptions . | . . . . . . . . . . . . . . . . . . . . . . . . . . . . . . . . . Robots Melted . | . . . . . . . . . . . . . . . . . . . . . . . . . . . . . . . . . Combat Hostiles . | . . . . . . . . . . . . . . . . . . . . . . . . . . . . . . . . . Parts Melted 3 | . . . . . 1 . . 1 . . . . . . . . . . 1 . . . . . . . . . . . . . Heat Transferred 1998 | 37 111 . . . 100 150 . 300 . . . . . . 100 . . . 250 . . . . . . . . 500 100 . 350 . Parts Sabotaged 2 | . . . . . . . . . . . . . . . . . . . . . . . . . . . . . . . . 2 Parts Stolen . | . . . . . . . . . . . . . . . . . . . . . . . . . . . . . . . . . Parts Stripped . | . . . . . . . . . . . . . . . . . . . . . . . . . . . . . . . . . Power Chain Reactions 21 | . . . . . 1 3 . 4 . . . . . . 1 . . . 4 . . . . . . . . 4 . . 4 . Missiles Intercepted . | . . . . . . . . . . . . . . . . . . . . . . . . . . . . . . . . . Alert | -11 -10 -10 -10 -9 -8 -8 -8 -8 -7 -7 -7 -7 -7 -7 -6 -6 -6 -6 -6 -6 -6 -5 -5 -5 -5 -5 -5 -5 -4 -4 -4 -4 ------- Run | Scr Mat Min Exi Min Mat Gar Mat Gar Fac Was Fac Low Low Dat Pro Fac Was Fac Gar Fac Gar Fac Was Fac Ext Cet Arc Hub Fac Was Fac Arm Peak Influence 1646 | 5 208 175 . 50 569 1242 624 792 519 144 221 . . . . 350 115 245 373 264 349 286 304 161 379 259 117 1646 821 1285 1103 858 Average Influence 299 | 4 111 89 . 4 225 835 611 586 412 80 31 . . . . 149 66 99 270 79 162 90 157 81 125 168 78 262 598 968 538 652 Maximum Alert Level 5 | . 1 . . . 2 4 2 3 2 . 1 . . . . 1 . 1 1 1 1 1 1 . 2 1 . 5 3 4 4 3 Low Security (%) 53 | 100 99 100 . 100 54 . . . . 100 93 . . . . 61 100 73 28 84 51 86 70 100 72 64 100 68 . 4 17 . Level 1 17 | . . . . . 15 6 . . 48 . 6 . . . . 38 . 26 71 15 48 13 29 . 27 35 . 16 19 9 13 . Level 2 14 | . . . . . 29 18 100 75 51 . . . . . . . . . . . . . . . . . . 1 47 10 28 75 Level 3 10 | . . . . . . 58 . 24 . . . . . . . . . . . . . . . . . . . 3 33 19 39 24 Level 4 4 | . . . . . . 16 . . . . . . . . . . . . . . . . . . . . . 9 . 57 2 . Level 5 . | . . . . . . . . . . . . . . . . . . . . . . . . . . . . . . . . . High Security . | . . . . . . . . . . . . . . . . . . . . . . . . . . . . . . . . . Max Security . | . . . . . . . . . . . . . . . . . . . . . . . . . . . . . . . . . Squads Dispatched 58 | . 3 . . . 5 . . . 3 . 1 . . . 1 2 . 4 . 8 . 5 . 1 1 . . 9 2 . 13 . Investigation 10 | . 2 . . . 1 . . . 1 . . . . . . . . 1 . 4 . . . . 1 . . . . . . . Extermination 15 | . . . . . . . . . 1 . . . . . . 1 . 1 . 4 . 1 . 1 . . . 3 1 . 2 . Reinforcement 26 | . 1 . . . 3 . . . 1 . 1 . . . . 1 . 2 . . . 4 . . . . . 5 1 . 7 . Assault 5 | . . . . . . . . . . . . . . . 1 . . . . . . . . . . . . 1 . . 3 . Garrison 2 | . . . . . 1 . . . . . . . . . . . . . . . . . . . . . . . . . 1 . Intercept . | . . . . . . . . . . . . . . . . . . . . . . . . . . . . . . . . . Construction Impeded 7 | . . . . . . . . . 1 . . . . . . . . 1 . . . . . . . . . . . . 5 . Haulers Reinforced 1 | . . . . . . . . . . . . . . . . . . . . . . . . . . . . . . . 1 . Alert ID Control Effect 4 | . . . . . . . . . . . . . . . . . . . . . . 1 . . . 1 . 2 . . . . Stealth | -11 -10 -10 -10 -9 -8 -8 -8 -8 -7 -7 -7 -7 -7 -7 -6 -6 -6 -6 -6 -6 -6 -5 -5 -5 -5 -5 -5 -5 -4 -4 -4 -4 --------- Run | Scr Mat Min Exi Min Mat Gar Mat Gar Fac Was Fac Low Low Dat Pro Fac Was Fac Gar Fac Gar Fac Was Fac Ext Cet Arc Hub Fac Was Fac Arm Distress Signals 21 | . . . . . 3 . . . 2 . . . . . . 1 . 2 . . . . . . 2 1 . 5 . . 3 2 Communications Jammed . | . . . . . . . . . . . . . . . . . . . . . . . . . . . . . . . . . Distress Signals . | . . . . . . . . . . . . . . . . . . . . . . . . . . . . . . . . . Times Spotted 567 | . 18 12 . 3 55 36 2 32 34 . 5 8 6 . 17 25 1 14 14 11 13 8 6 4 12 11 8 85 5 5 93 24 Peak Tracking Total 13 | . 4 3 . 3 7 6 3 6 7 . 5 4 4 . 8 5 1 3 9 3 6 2 1 2 4 6 2 7 4 2 13 9 Tactical Retreats 52 | . . . . . 10 9 . 11 . . . . . . 3 1 . . 3 1 3 . . . 1 . 1 1 . . 7 1 Traps | -11 -10 -10 -10 -9 -8 -8 -8 -8 -7 -7 -7 -7 -7 -7 -6 -6 -6 -6 -6 -6 -6 -5 -5 -5 -5 -5 -5 -5 -4 -4 -4 -4 ------- Run | Scr Mat Min Exi Min Mat Gar Mat Gar Fac Was Fac Low Low Dat Pro Fac Was Fac Gar Fac Gar Fac Was Fac Ext Cet Arc Hub Fac Was Fac Arm Traps Triggered 48 | . 3 . . . . 15 . 9 3 . . . . . . 2 . . 3 3 2 1 . 1 . . . 2 1 . 3 . Indirectly 12 | . . . . . . 5 . 3 1 . . . . . . . . . 1 . . . . . . . . 1 . . 1 . Trap Hack Attempts . | . . . . . . . . . . . . . . . . . . . . . . . . . . . . . . . . . Triggered . | . . . . . . . . . . . . . . . . . . . . . . . . . . . . . . . . . Disarmed . | . . . . . . . . . . . . . . . . . . . . . . . . . . . . . . . . . Reprogrammed . | . . . . . . . . . . . . . . . . . . . . . . . . . . . . . . . . . Reused . | . . . . . . . . . . . . . . . . . . . . . . . . . . . . . . . . . Traps Extracted . | . . . . . . . . . . . . . . . . . . . . . . . . . . . . . . . . . Installed . | . . . . . . . . . . . . . . . . . . . . . . . . . . . . . . . . . Triggered 2 | . . . . . . . . . . . . . . . . . . . 1 . . . . . . . . . . . 1 . Machines | -11 -10 -10 -10 -9 -8 -8 -8 -8 -7 -7 -7 -7 -7 -7 -6 -6 -6 -6 -6 -6 -6 -5 -5 -5 -5 -5 -5 -5 -4 -4 -4 -4 ---------- Run | Scr Mat Min Exi Min Mat Gar Mat Gar Fac Was Fac Low Low Dat Pro Fac Was Fac Gar Fac Gar Fac Was Fac Ext Cet Arc Hub Fac Was Fac Arm Machines Disabled 74 | . 2 . . . 1 6 . 3 . . . 1 . . . 1 . 1 1 . 2 2 . 2 1 2 3 30 1 . 13 2 Max in Single Turn 13 | . 1 . . . 1 1 . 1 . . . 1 . . . 1 . . 1 . 1 1 . . . . . 13 1 . 2 1 Garrison Access 7 | . . . . . . . . . 1 . 1 . . . . . . . . . . . . . . . . 1 1 . 3 . Garrison Relay 7 | . . . . . . 4 . 1 . . . . . . . . . . 1 . 1 . . . . . . . . . . . Network Hub 4 | . . . . . . . . . . . . . . . . . . . . . . . . . . . . 4 . . . . Machines Sabotaged . | . . . . . . . . . . . . . . . . . . . . . . . . . . . . . . . . . Garrisons Compromised . | . . . . . . . . . . . . . . . . . . . . . . . . . . . . . . . . . Overloaded Fab Kills . | . . . . . . . . . . . . . . . . . . . . . . . . . . . . . . . . . Fab Network Shutdowns . | . . . . . . . . . . . . . . . . . . . . . . . . . . . . . . . . . Hacking | -11 -10 -10 -10 -9 -8 -8 -8 -8 -7 -7 -7 -7 -7 -7 -6 -6 -6 -6 -6 -6 -6 -5 -5 -5 -5 -5 -5 -5 -4 -4 -4 -4 --------- Run | Scr Mat Min Exi Min Mat Gar Mat Gar Fac Was Fac Low Low Dat Pro Fac Was Fac Gar Fac Gar Fac Was Fac Ext Cet Arc Hub Fac Was Fac Arm Machines Accessed 78 | . 6 . 1 . 8 . 1 . 4 . 5 . . 4 . 3 . 4 . 12 . 2 . 2 9 2 . 4 2 . 7 2 Terminals 40 | . 4 . . . 6 . . . 2 . 3 . . . . 1 . . . 1 . 2 . 1 9 2 . 3 . . 4 2 Fabricators 5 | . . . . . . . . . 1 . . . . . . . . 1 . 2 . . . . . . . . 1 . . . Repair Stations 9 | . . . . . . . . . . . . . . . . 1 . 2 . 5 . . . 1 . . . . . . . . Recycling Units 4 | . 2 . . . 1 . . . . . . . . . . . . . . 1 . . . . . . . . . . . . Scanalyzers 4 | . . . . . . . . . . . 1 . . . . 1 . . . 2 . . . . . . . . . . . . Garrison Access 11 | . . . . . 1 . 1 . 1 . 1 . . . . . . 1 . 1 . . . . . . . 1 1 . 3 . Total Hacks 202 | . 14 . 1 . 18 . 1 . 7 . 13 . . 24 . 6 . 12 . 29 . 3 . 4 24 5 . 8 3 . 20 10 Successful 121 | . 10 . 1 . 9 . 1 . 5 . 6 . . 24 . 2 . 7 . 18 . 1 . 2 9 4 . 7 3 . 9 3 Failed 80 | . 4 . . . 9 . . . 2 . 7 . . . . 4 . 5 . 11 . 2 . 2 14 1 . 1 . . 11 7 Catastrophic 22 | . . . . . 3 . . . . . 3 . . . . . . . . 2 . 1 . . 5 1 . . . . 3 4 Database Lockouts 2 | . . . . . . . . . . . . . . . . . . . . . . . . . 2 . . . . . . . Manual 74 | . 8 . . . 8 . . . . . 7 . . . . 1 . . . 2 . 1 . 1 20 6 . 6 . . 13 1 Terminals 105 | . 10 . . . 15 . . . 4 . 8 . . . . 1 . . . 1 . 3 . 2 24 5 . 6 . . 16 10 Fabricators 9 | . . . . . . . . . 1 . . . . . . . . 2 . 5 . . . . . . . . 1 . . . Repair Stations 28 | . . . . . . . . . . . . . . . . 3 . 9 . 14 . . . 2 . . . . . . . . Recycling Units 6 | . 4 . . . 1 . . . . . . . . . . . . . . 1 . . . . . . . . . . . . Scanalyzers 12 | . . . . . . . . . . . 3 . . . . 2 . . . 7 . . . . . . . . . . . . Garrison Access 17 | . . . . . 2 . 1 . 2 . 2 . . . . . . 1 . 1 . . . . . . . 2 2 . 4 . Terminal Hacks 68 | . 6 . 1 . 7 . . . 2 . 2 . . 24 . 1 . . . 1 . 1 . 2 9 4 . 2 . . 3 3 Record 12 | . . . 1 . . . . . . . . . . 11 . . . . . . . . . . . . . . . . . . Part Schematic 8 | . . . . . . . . . . . . . . 6 . . . . . . . . . . 1 1 . . . . . . Robot Schematic 4 | . . . . . . . . . . . . . . 4 . . . . . . . . . . . . . . . . . . Prototype ID Bank 6 | . 1 . . . 1 . . . . . . . . 3 . . . . . . . . . . . . . . . . . 1 Open Door 1 | . . . . . . . . . . . . . . . . . . . . . . . . . . 1 . . . . . . Branch Access Points 4 | . . . . . . . . . . . 1 . . . . 1 . . . . . . . 1 . . . . . . 1 . Terminal Index 3 | . . . . . . . . . . . . . . . . . . . . . . 1 . . 1 . . . . . 1 . Fabricator Index 1 | . . . . . . . . . . . . . . . . . . . . . . . . . 1 . . . . . . . Repair Station Index 1 | . . . . . . . . . . . . . . . . . . . . . . . . . 1 . . . . . . . Unreport Threat 9 | . . . . . 2 . . . . . . . . . . . . . . . . . . 1 1 2 . 2 . . 1 . Locate Traps 2 | . . . . . . . . . . . . . . . . . . . . . . . . . 2 . . . . . . . Security Status 1 | . 1 . . . . . . . . . . . . . . . . . . . . . . . . . . . . . . . Transport Status 1 | . . . . . . . . . 1 . . . . . . . . . . . . . . . . . . . . . . . Hauler Manifests 3 | . 1 . . . 1 . . . . . . . . . . . . . . . . . . . . . . . . . . 1 Registered Prototypes 1 | . 1 . . . . . . . . . . . . . . . . . . . . . . . . . . . . . . . Zone Layout 11 | . 2 . . . 3 . . . 1 . 1 . . . . . . . . 1 . . . . 2 . . . . . . 1 Fabricator Hacks 5 | . . . . . . . . . 1 . . . . . . . . 1 . 2 . . . . . . . . 1 . . . Network Status 2 | . . . . . . . . . 1 . . . . . . . . . . . . . . . . . . . 1 . . . Load Schematic 2 | . . . . . . . . . . . . . . . . . . 1 . 1 . . . . . . . . . . . . Build 1 | . . . . . . . . . . . . . . . . . . . . 1 . . . . . . . . . . . . Repair Station Hacks 15 | . . . . . . . . . . . . . . . . . . 5 . 10 . . . . . . . . . . . . Scan Component 9 | . . . . . . . . . . . . . . . . . . 3 . 6 . . . . . . . . . . . . Repair 6 | . . . . . . . . . . . . . . . . . . 2 . 4 . . . . . . . . . . . . Recycling Unit Hacks 2 | . 2 . . . . . . . . . . . . . . . . . . . . . . . . . . . . . . . Retrieve Matter 2 | . 2 . . . . . . . . . . . . . . . . . . . . . . . . . . . . . . . Scanalyzer 6 | . . . . . . . . . . . 2 . . . . 1 . . . 3 . . . . . . . . . . . . Insert Component 4 | . . . . . . . . . . . 1 . . . . 1 . . . 2 . . . . . . . . . . . . Analyze 2 | . . . . . . . . . . . 1 . . . . . . . . 1 . . . . . . . . . . . . Garrison Access Hacks 16 | . . . . . 1 . 1 . 2 . 2 . . . . . . 1 . 1 . . . . . . . 2 2 . 4 . Unlock Access 4 | . . . . . 1 . 1 . . . . . . . . . . 1 . 1 . . . . . . . . . . . . Seal Access 7 | . . . . . . . . . 1 . 1 . . . . . . . . . . . . . . . . 1 1 . 3 . Coupler Status 5 | . . . . . . . . . 1 . 1 . . . . . . . . . . . . . . . . 1 1 . 1 . Unauthorized Hacks 24 | . 4 . . . 2 . . . . . . . . . . . . . . 2 . 1 . . . . . 6 . . 9 . Terminals 5 | . . . . . . . . . . . . . . . . . . . . . . . . . . . . 3 . . 2 . Track 2 | . . . . . . . . . . . . . . . . . . . . . . . . . . . . 2 . . . . Operators 3 | . . . . . . . . . . . . . . . . . . . . . . . . . . . . 1 . . 2 . Fabricators . | . . . . . . . . . . . . . . . . . . . . . . . . . . . . . . . . . Repair Stations . | . . . . . . . . . . . . . . . . . . . . . . . . . . . . . . . . . Recycling Units 4 | . 2 . . . 1 . . . . . . . . . . . . . . 1 . . . . . . . . . . . . Tunnel 4 | . 2 . . . 1 . . . . . . . . . . . . . . 1 . . . . . . . . . . . . Scanalyzers . | . . . . . . . . . . . . . . . . . . . . . . . . . . . . . . . . . Garrison Access . | . . . . . . . . . . . . . . . . . . . . . . . . . . . . . . . . . Data Cores Recovered 3 | . . . . . 1 . . . . . 2 . . . . . . . . . . . . . . . . . . . . . Used . | . . . . . . . . . . . . . . . . . . . . . . . . . . . . . . . . . Hacking Detections 49 | . 3 . . . 7 . . . 3 . 4 . . . . 2 . 3 . 9 . 2 . 2 8 2 . 1 . . 2 1 Full Trace Events 3 | . . . . . . . . . . . . . . . . . . 1 . 2 . . . . . . . . . . . . Feedback Events . | . . . . . . . . . . . . . . . . . . . . . . . . . . . . . . . . . Feedback Blocked . | . . . . . . . . . . . . . . . . . . . . . . . . . . . . . . . . . Robot Schematics Acquired 4 | . . . . . . . . . . . . . . 4 . . . . . . . . . . . . . . . . . . Robots Built . | . . . . . . . . . . . . . . . . . . . . . . . . . . . . . . . . . Matter . | . . . . . . . . . . . . . . . . . . . . . . . . . . . . . . . . . Time . | . . . . . . . . . . . . . . . . . . . . . . . . . . . . . . . . . Total Robot Build Rating . | . . . . . . . . . . . . . . . . . . . . . . . . . . . . . . . . . Part Schematics Acquired 8 | . . . . . . . . . . . 1 . . 6 . . . . . . . . . . 1 . . . . . . . Parts Built 1 | . . . . . . . . . . . . . . . . . . . . 1 . . . . . . . . . . . . Matter 234 | . . . . . . . . . . . . . . . . . . . . 234 . . . . . . . . . . . . Time 58 | . . . . . . . . . . . . . . . . . . . . 58 . . . . . . . . . . . . Total Part Build Rating 7 | . . . . . . . . . . . . . . . . . . . . 7 . . . . . . . . . . . . Parts Repaired 6 | . . . . . . . . . . . . . . . . . . 2 . 4 . . . . . . . . . . . . Time 379 | . . . . . . . . . . . . . . . . . . 106 . 273 . . . . . . . . . . . . Parts Recycled . | . . . . . . . . . . . . . . . . . . . . . . . . . . . . . . . . . Recycled Matter . | . . . . . . . . . . . . . . . . . . . . . . . . . . . . . . . . . Retrieved Matter . | . . . . . . . . . . . . . . . . . . . . . . . . . . . . . . . . . Retrieved Components . | . . . . . . . . . . . . . . . . . . . . . . . . . . . . . . . . . Parts Scanalyzed 3 | . . . . . . . . . . . 1 . . . . 1 . . . 1 . . . . . . . . . . . . Part Schematics Acquired 1 | . . . . . . . . . . . 1 . . . . . . . . . . . . . . . . . . . . . Parts Damaged . | . . . . . . . . . . . . . . . . . . . . . . . . . . . . . . . . . Bothacking | -11 -10 -10 -10 -9 -8 -8 -8 -8 -7 -7 -7 -7 -7 -7 -6 -6 -6 -6 -6 -6 -6 -5 -5 -5 -5 -5 -5 -5 -4 -4 -4 -4 ------------ Run | Scr Mat Min Exi Min Mat Gar Mat Gar Fac Was Fac Low Low Dat Pro Fac Was Fac Gar Fac Gar Fac Was Fac Ext Cet Arc Hub Fac Was Fac Arm Used RIF Installer 4 | . . . . . . 1 . 1 . . . . . . . . . . 1 . 1 . . . . . . . . . . . Coupler Efficiency 1 | . . . . . . . . 1 . . . . . . . . . . . . . . . . . . . . . . . . Alert ID Control 1 | . . . . . . . . . . . . . . . . . . . . . 1 . . . . . . . . . . . Structural Interface 1 | . . . . . . . . . . . . . . . . . . . 1 . . . . . . . . . . . . . Robots Hacked 52 | . . . . . . . . . 6 . . . . . . 2 . 2 . . . 3 6 1 5 1 . 15 1 6 4 . Non-combat 19 | . . . . . . . . . 1 . . . . . . 2 . 2 . . . 1 . 1 5 . . 4 1 . 2 . Combat 33 | . . . . . . . . . 5 . . . . . . . . . . . . 2 6 . . 1 . 11 . 6 2 . Robot Hacks Applied 66 | . . . . . . . . . 6 . . . . . . 2 . 3 . . . 4 6 1 6 1 . 17 3 8 9 . parse_system 2 | . . . . . . . . . . . . . . . . . . . . . . . . . 1 1 . . . . . . find_chute 2 | . . . . . . . . . 1 . . . . . . 1 . . . . . . . . . . . . . . . . ignore_repairs 5 | . . . . . . . . . . . . . . . . . . . . . . . . . 4 . . 1 . . . . drop_inventory 1 | . . . . . . . . . . . . . . . . . . 1 . . . . . . . . . . . . . . ignore_parts 1 | . . . . . . . . . . . . . . . . . . . . . . . . . 1 . . . . . . . purge_threat 15 | . . . . . . . . . . . . . . . . . . 1 . . . 2 . . . . . 3 3 . 6 . locate_traps 1 | . . . . . . . . . . . . . . . . . . 1 . . . . . . . . . . . . . . map_route 2 | . . . . . . . . . . . . . . . . . . . . . . . . 1 . . . 1 . . . . relay_feed 1 | . . . . . . . . . . . . . . . . . . . . . . . . . . . . 1 . . . . ignore_targets 14 | . . . . . . . . . . . . . . . . . . . . . . . 6 . . . . . . 8 . . link_complan 1 | . . . . . . . . . . . . . . . . . . . . . . . . . . . . . . . 1 . overwrite_iff 2 | . . . . . . . . . . . . . . . . . . . . . . . . . . . . 2 . . . . formatsys_low 2 | . . . . . . . . . . . . . . . . 1 . . . . . . . . . . . . . . 1 . formatsys_high 17 | . . . . . . . . . 5 . . . . . . . . . . . . 2 . . . . . 9 . . 1 . Relay Couplers Released 36 | . . . . . . 17 . 3 . . . . . . . 4 . . 3 . 5 . . . . . . 2 2 . . . Machine Destruction 32 | . . . . . . 17 . 3 . . . . . . . . . . 3 . 5 . . . . . . 2 2 . . . Programmers 4 | . . . . . . . . . . . . . . . . 4 . . . . . . . . . . . . . . . . Attached 21 | . . . . . . 1 . . 3 . . 1 . . . 2 . . . . . 3 . . . 1 . 4 1 2 3 . Robots Rewired 21 | . . . . . . . . . 1 . . . . . 2 . . . . . . . . . 16 1 . 1 . . . . Allies Hacked 1 | . . . . . . . . . . . . . . . . . . 1 . . . . . . . . . . . . . . Hacks Repelled . | . . . . . . . . . . . . . . . . . . . . . . . . . . . . . . . . . Allies | -11 -10 -10 -10 -9 -8 -8 -8 -8 -7 -7 -7 -7 -7 -7 -6 -6 -6 -6 -6 -6 -6 -5 -5 -5 -5 -5 -5 -5 -4 -4 -4 -4 -------- Run | Scr Mat Min Exi Min Mat Gar Mat Gar Fac Was Fac Low Low Dat Pro Fac Was Fac Gar Fac Gar Fac Was Fac Ext Cet Arc Hub Fac Was Fac Arm Total Allies 129 | . . . . . . . . . 6 20 . . . . 3 1 20 . . . . 2 19 . 25 1 . 12 . 18 2 . Largest Group 23 | . . . . . . . . . 5 20 19 17 8 7 8 1 20 18 9 . . 1 18 18 23 11 8 5 . 18 18 . Highest-Rated Group 900 | . . . . . . . . . 96 537 507 462 247 211 305 19 761 653 307 . . 49 668 663 900 432 206 85 . 668 668 . Highest-Rated Ally 156 | . . . . . . . . . 32 33 33 33 33 33 94 19 50 47 46 . . 49 50 50 156 150 37 37 . 50 56 . Total Orders 9 | . . . . . . . . . . . . . . . . 2 1 . . 1 . 2 . . . 2 . . . . 1 . STAY 1 | . . . . . . . . . . . . . . . . . . . . . . . . . . 1 . . . . . . FOLLOW 1 | . . . . . . . . . . . . . . . . . . . . . . . . . . 1 . . . . . . AID 3 | . . . . . . . . . . . . . . . . 1 1 . . . . . . . . . . . . . 1 . EXPLORE 4 | . . . . . . . . . . . . . . . . 1 . . . 1 . 2 . . . . . . . . . . Ally Attacks 973 | . . . . . . . . . 65 . 32 105 30 . 36 . 32 112 2 . . 14 77 49 187 38 38 47 . . 109 . Total Damage 19117 | . . . . . . . . . 1236 . 458 1802 307 . 814 . 683 2231 39 . . 333 1693 1039 4041 836 770 674 . . 2161 . Kills 119 | . . . . . . . . . 11 . 8 14 3 . 9 . 1 12 . . . 1 5 4 26 5 4 2 . . 14 . Allies Corrupted 4 | . . . . . . . . . . . . . . . . . . 2 . . . . . 1 . . . . . . 1 . Allies Melted 1 | . . . . . . . . . . . . . . . . . . 1 . . . . . . . . . . . . . . Intel | -11 -10 -10 -10 -9 -8 -8 -8 -8 -7 -7 -7 -7 -7 -7 -6 -6 -6 -6 -6 -6 -6 -5 -5 -5 -5 -5 -5 -5 -4 -4 -4 -4 ------- Run | Scr Mat Min Exi Min Mat Gar Mat Gar Fac Was Fac Low Low Dat Pro Fac Was Fac Gar Fac Gar Fac Was Fac Ext Cet Arc Hub Fac Was Fac Arm Robot Analysis Total . | . . . . . . . . . . . . . . . . . . . . . . . . . . . . . . . . . Derelict Logs Recovered 7 | . . 1 . 2 . . . . . . . 2 1 . 1 . . . . . . . . . . . . . . . . . Drone Launches 8 | . . . . . . . . . . . . . . . . 2 . . . 2 . 4 . . . . . . . . . . Drone Recoveries . | . . . . . . . . . . . . . . . . . . . . . . . . . . . . . . . . . Exploration | -11 -10 -10 -10 -9 -8 -8 -8 -8 -7 -7 -7 -7 -7 -7 -6 -6 -6 -6 -6 -6 -6 -5 -5 -5 -5 -5 -5 -5 -4 -4 -4 -4 ------------- Run | Scr Mat Min Exi Min Mat Gar Mat Gar Fac Was Fac Low Low Dat Pro Fac Was Fac Gar Fac Gar Fac Was Fac Ext Cet Arc Hub Fac Was Fac Arm Turns Passed 30277 | 18 920 635 268 746 1960 1799 113 1089 1366 713 474 920 667 156 989 1173 688 796 478 2466 1017 955 716 401 1064 310 138 3076 286 868 2562 450 Spaces Moved 13241 | 11 473 366 190 387 751 734 43 436 541 395 239 500 365 86 473 434 320 361 194 1082 386 498 352 220 504 140 59 1200 110 281 986 124 Core . | . . . . . . . . . . . . . . . . . . . . . . . . . . . . . . . . . Treads 3312 | . 438 112 . 289 751 734 43 436 406 . . . . . . . . . . . . . . . . . . . . . 29 74 Legs 1178 | 11 35 . . . . . . . . . . . . . . . . . . . . . . . . . . 463 110 192 367 . Wheels 8751 | . . 254 190 98 . . . . 135 395 239 500 365 86 473 434 320 361 194 1082 386 498 352 220 504 140 59 737 . 89 590 50 Hover . | . . . . . . . . . . . . . . . . . . . . . . . . . . . . . . . . . Flight . | . . . . . . . . . . . . . . . . . . . . . . . . . . . . . . . . . Fastest Speed 100 | 120 120 130 100 150 192 192 220 200 150 160 160 180 180 180 180 160 140 160 160 150 160 150 160 170 170 170 170 155 220 165 145 145 Average Speed 179 | 120 157 145 133 187 195 208 220 217 203 169 179 180 180 180 180 178 162 167 160 160 160 159 165 170 170 173 178 188 220 205 191 211 Slowest Speed 340 | 120 160 220 150 200 200 220 220 220 240 180 180 180 180 180 180 190 170 170 160 200 170 160 170 170 170 180 180 240 220 220 340 250 Overloaded Moves . | . . . . . . . . . . . . . . . . . . . . . . . . . . . . . . . . . Propulsion Burnouts . | . . . . . . . . . . . . . . . . . . . . . . . . . . . . . . . . . Robots Hopped 1 | . . . . . . . . . . . . . . . . . . . . . . . . . . . . . . . 1 . Cave-ins Triggered . | . . . . . . . . . . . . . . . . . . . . . . . . . . . . . . . . . Exploration Rate (%) 51 | 2 79 77 48 75 79 85 7 76 23 89 12 66 46 70 71 23 84 12 41 27 57 16 90 6 65 69 69 84 4 78 40 13 Regions Visited 32 Branch Regions 12 Pre-discovered Areas 8 | . 2 . 1 1 1 . . . . . . . 1 1 . . . . . 1 . . . . . . . . . . . . Known Exits Taken 12 | . . . . . 1 . 1 . . . 1 1 . . . . . 1 . 1 . . . 1 1 1 1 1 . . 1 . Unknown Exits Taken 8 | 1 1 1 1 1 . . . . . . . . 1 1 1 . . . . . . . . . . . . . . . . . Scrap Searched 5 | . . 1 . 1 . . . . . . . 2 . . 1 . . . . . . . . . . . . . . . . . Spaces Dug 289 | . 3 . . . 40 2 5 2 29 . 7 . . . 1 22 . 11 . 42 . 22 . 3 17 . . 36 2 2 43 . Terrain Destroyed 1184 | . 10 29 . 17 48 28 5 7 30 . 7 . . . 60 23 . 11 5 42 . 22 . 3 26 . . 721 33 2 55 . Melee 266 | . . . . . 37 . 5 . 29 . 7 . . . 1 22 . 11 . 42 . 22 . 3 12 . . 36 2 2 35 . Projectile 39 | . 10 5 . . 1 . . . 1 . . . . . 1 1 . . . . . . . . 14 . . 6 . . . . AOE 879 | . . 24 . 17 10 28 . 7 . . . . . . 58 . . . 5 . . . . . . . . 679 31 . 20 . Actions | -11 -10 -10 -10 -9 -8 -8 -8 -8 -7 -7 -7 -7 -7 -7 -6 -6 -6 -6 -6 -6 -6 -5 -5 -5 -5 -5 -5 -5 -4 -4 -4 -4 --------- Run | Scr Mat Min Exi Min Mat Gar Mat Gar Fac Was Fac Low Low Dat Pro Fac Was Fac Gar Fac Gar Fac Was Fac Ext Cet Arc Hub Fac Was Fac Arm Total 17584 | 12 566 421 205 404 1058 920 54 529 717 435 272 519 374 88 550 680 471 516 328 1686 706 595 421 247 652 185 82 1657 140 402 1439 253 Wait 1684 | . 24 20 . 10 108 41 1 19 42 2 12 9 5 3 23 78 88 99 60 445 238 32 13 9 44 1 14 83 . 15 112 34 Move 13215 | 10 472 365 189 386 751 733 43 435 541 394 238 499 364 85 472 434 319 361 193 1082 385 498 351 219 503 139 58 1199 110 280 983 124 Hop 1 | . . . . . . . . . . . . . . . . . . . . . . . . . . . . . . . 1 . Pick Up 245 | . 6 5 13 1 20 20 1 3 9 12 3 . 2 . 3 14 5 8 3 16 6 . 7 5 2 8 . 27 2 2 34 8 Fast Attach 103 | . 3 . 1 . 12 . . . 15 4 3 2 . . 1 4 11 2 3 11 . 2 2 1 1 1 . 7 . . 14 3 Attach 163 | . 1 2 . . 6 5 . 6 5 2 . 2 . . 2 12 3 3 2 11 2 5 . 1 . 1 . 25 4 6 48 9 Detach 90 | . . . 1 . 3 1 . 3 3 2 2 2 . . . 6 5 3 . 3 1 3 1 2 . . . 16 3 2 23 5 Swap 267 | . 6 5 . 4 10 26 2 6 22 4 . 2 . . 9 8 4 5 3 14 13 12 2 1 21 17 1 40 5 3 13 9 Drop 220 | . 10 . 1 . 22 10 2 1 14 11 5 2 1 . 1 11 20 6 6 22 3 1 7 5 5 6 . 23 . 1 11 13 Fire 638 | 2 44 24 . 2 17 33 . 37 22 . . . 2 . 21 15 . 4 9 8 16 6 6 1 56 8 9 101 14 9 141 31 Melee 860 | . . . . . 108 28 5 4 44 4 9 1 . . 18 97 16 25 22 65 26 34 32 3 17 4 . 136 2 84 59 17 Ram . | . . . . . . . . . . . . . . . . . . . . . . . . . . . . . . . . . Kick . | . . . . . . . . . . . . . . . . . . . . . . . . . . . . . . . . . Crush 2 | . . . . 1 1 . . . . . . . . . . . . . . . . . . . . . . . . . . . Escape Stasis 92 | . . . . . . 23 . 15 . . . . . . . . . . 27 8 16 . . . 3 . . . . . . . Rewire . | . . . . . . . . . . . . . . . . . . . . . . . . . . . . . . . . . Trap . | . . . . . . . . . . . . . . . . . . . . . . . . . . . . . . . . . Miscellaneous 4 | . . . . . . . . . . . . . . . . 1 . . . 1 . 2 . . . . . . . . . . Route ------- -11/Scrapyard -10/Materials (discovered 4 exits: [*Mat x2] / [*Min x2]) -10/Mines (discovered 3 exits: [*Mat x2] / *Exi) -10/Exiles -9/Mines -8/Materials (discovered 6 exits: *Fac x3 / [*Sto x2] / Gar) -8/Garrison (discovered 3 exits: *Mat x3) -8/Materials -8/Garrison (discovered 3 exits: *Fac x3) -7/Factory (discovered 2 exits: *Low x2) -7/Waste -7/Factory (discovered 2 exits: *Low x2) -7/Lower Caves -7/Lower Caves -7/Data Miner -6/Proximity Caves -6/Factory (discovered 4 exits: *Fac x2 / Low x2) -6/Waste -6/Factory -6/Garrison -6/Factory (discovered 2 exits: *Fac / Gar) -6/Garrison (discovered 2 exits: *Fac x2) -5/Factory -5/Waste -5/Factory (discovered 5 exits: *Fac / Upp x2 / *Ext x2) -5/Extension (discovered 2 exits: *Fac / *Cet) -5/Cetus -5/Archives -5/Hub_04(d) (discovered 3 exits: *Fac x3) -4/Factory -4/Waste -4/Factory (discovered 4 exits: [*Res] / *Upp x2 / *Arm) -4/Armory History --------- Turn | Location | Event 7 | -11/Scrapyard | Discovered new exit (range 3) 19 | -11/Scrapyard | Entered Materials 95 | -10/Materials | Discovered new exit (range 15) 201 | -10/Materials | Discovered new exit (range 5) 300 | -10/Materials | Build established: Mutant 512 | -10/Materials | Discovered new exit (range 16) 801 | -10/Materials | Discovered new exit (range 16) 939 | -10/Materials | Entered Mines 1246 | -10/Mines | Discovered new exit (range 5) 1355 | -10/Mines | Learned Materials terminal intel 1413 | -10/Mines | Deemed a non-threat by the Exiles lab entrance 1413 | -10/Mines | Discovered new exit (range 5) 1473 | -10/Mines | Core integrity fell below 50% 1505 | -10/Mines | Discovered new exit (range 5) 1574 | -10/Mines | Entered Exiles 1610 | -10/Exiles | Met 8R-AWN 1628 | -10/Exiles | Met EX-HEX 1680 | -10/Exiles | Met EX-DEC 1686 | -10/Exiles | Learned location of Zion (-6) 1823 | -10/Exiles | Discovered new exit (range 15) 1842 | -10/Exiles | Entered Mines 1882 | -9/Mines | Met a Derelict bent on vengeance 1950 | -9/Mines | Learned Materials emergency access door positions 2019 | -9/Mines | Build established: Hauler-Mutant 2574 | -9/Mines | Discovered new exit (range 6) 2588 | -9/Mines | Entered Materials 2588 | -8/Materials | Evolved 4 slots: Utility x4 2590 | -8/Materials | Loaded intel: 12 terminal locations 2888 | -8/Materials | Discovered new exit (range 4) 3150 | -8/Materials | Discovered new exit (range 8) 3500 | -8/Materials | Discovered new exit (range 13) 3940 | -8/Materials | Discovered new exit (range 13) 4420 | -8/Materials | Discovered new exit (range 16) 4491 | -8/Materials | Garrison activated, responded to threat 4548 | -8/Materials | Identified exit to Garrison 4548 | -8/Materials | Entered Garrison 4615 | -8/Garrison | Triggered checkpoint 4686 | -8/Garrison | Triggered checkpoint 4750 | -8/Garrison | Triggered checkpoint 4843 | -8/Garrison | Discovered new exit (range 15) 5022 | -8/Garrison | Triggered checkpoint 5029 | -8/Garrison | Discovered new exit (range 15) 5067 | -8/Garrison | Installed Relay Interface Framework 5240 | -8/Garrison | Triggered checkpoint 5283 | -8/Garrison | Garrison Relay disabled 5458 | -8/Garrison | Triggered checkpoint 5501 | -8/Garrison | Garrison Relay disabled 5838 | -8/Garrison | Triggered checkpoint 5851 | -8/Garrison | Garrison Relay disabled 6053 | -8/Garrison | Triggered checkpoint 6133 | -8/Garrison | Discovered new exit (range 9) 6179 | -8/Garrison | Triggered checkpoint 6253 | -8/Garrison | Garrison Relay disabled 6347 | -8/Garrison | Entered Materials 6460 | -8/Materials | Identified exit to Garrison 6460 | -8/Materials | Entered Garrison 6504 | -8/Garrison | Triggered checkpoint 6620 | -8/Garrison | Triggered checkpoint 6783 | -8/Garrison | Discovered new exit (range 14) 6906 | -8/Garrison | Triggered checkpoint 6951 | -8/Garrison | Lost 3 parts (2u1w) 7044 | -8/Garrison | Discovered new exit (range 8) 7185 | -8/Garrison | Triggered checkpoint 7356 | -8/Garrison | Discovered new exit (range 10) 7389 | -8/Garrison | Expanded RIF knowledge: Coupler Efficiency 7426 | -8/Garrison | Triggered checkpoint 7473 | -8/Garrison | Garrison Relay disabled 7549 | -8/Garrison | Entered Factory 7549 | -7/Factory | Evolved 2 slots: Utility x2 7563 | -7/Factory | Discovered new exit (range 7) 7860 | -7/Factory | Discovered new exit (range 15) 7914 | -7/Factory | Build established: Bothacker-Mutant 8177 | -7/Factory | Found Prototype Launcher 8177 | -7/Factory | Identified Rocket Array 8915 | -7/Factory | Sucked down chute 8915 | -7/Factory | Entered Waste 8916 | -7/Waste | Joined by Warlord forces that had cleared the area 8958 | -7/Waste | Found Powered Armor 9006 | -7/Waste | Found Damper Plating 9097 | -7/Waste | Found Prototype Device 9097 | -7/Waste | Identified EM Disruption Field 9514 | -7/Waste | Found Damper Plating 9548 | -7/Waste | Found Damper Plating 9589 | -7/Waste | Discovered new exit (range 11) 9609 | -7/Waste | Found Damper Plating 9628 | -7/Waste | Entered Factory 9628 | -7/Factory | Accompanied by 19 allies 9762 | -7/Factory | Identified exit to Lower Caves 10102 | -7/Factory | Entered Lower Caves 10102 | -7/Lower Caves | Accompanied by 17 allies 10107 | -7/Lower Caves | Encountered a Warlord checkpoint 10382 | -7/Lower Caves | Attracted the attention of an 0b10 checkpoint 10406 | -7/Lower Caves | Learned 4 Factory zone layouts 10421 | -7/Lower Caves | Identified exit to Lower Caves 10476 | -7/Lower Caves | Attacked by a delusional Derelict stockpiling parts 10772 | -7/Lower Caves | Spotted B-75 Beast 11022 | -7/Lower Caves | Entered another Lower Caves area 11022 | -7/Lower Caves | Accompanied by 8 allies 11139 | -7/Lower Caves | Encountered a Warlord checkpoint 11404 | -7/Lower Caves | Discovered new exit (range 15) 11689 | -7/Lower Caves | Entered Data Miner 11689 | -7/Data Miner | Accompanied by 7 allies 11689 | -7/Data Miner | Discovered new exit (range 6) 11724 | -7/Data Miner | Met Data Miner 11763 | -7/Data Miner | Learned location of Section 7 (-2) 11763 | -7/Data Miner | Acquired the access code to Warlord's prototype stash 11799 | -7/Data Miner | Received God Mode back door access code from Data Miner 11845 | -7/Data Miner | Entered Proximity Caves 11845 | -6/Proximity Caves | Accompanied by 7 allies 11982 | -6/Proximity Caves | Escorted by Enhanced Grunt 11982 | -6/Proximity Caves | Attracted the attention of an 0b10 outpost 12200 | -6/Proximity Caves | Found Prototype Device 12401 | -6/Proximity Caves | Attracted the attention of an 0b10 checkpoint 12560 | -6/Proximity Caves | Learned Factory terminal intel 12780 | -6/Proximity Caves | Discovered new exit (range 10) 12834 | -6/Proximity Caves | Entered Factory 12834 | -6/Factory | Evolved 2 slots: Utility x2 12835 | -6/Factory | Identified exit to Factory 12836 | -6/Factory | Loaded intel: 20 terminal locations 13685 | -6/Factory | Discovered exit to Factory (range 3) 13848 | -6/Factory | Identified exit to Lower Caves 13998 | -6/Factory | Found Launcher Loader 14007 | -6/Factory | Sucked down chute 14007 | -6/Factory | Entered Waste 14007 | -6/Waste | Met up with 1 ally sucked down the chute earlier 14008 | -6/Waste | Joined by Warlord forces that had cleared the area 14069 | -6/Waste | Found Damper Plating 14125 | -6/Waste | Found Quantum Capacitor 14187 | -6/Waste | Found Damper Plating 14320 | -6/Waste | A Compactor rumbled back to life 14321 | -6/Waste | Spotted C-40 Crusher 14336 | -6/Waste | Allies destroyed C-40 Crusher 14383 | -6/Waste | Discovered new exit (range 15) 14516 | -6/Waste | Identified Exp. Thermal Shield 14695 | -6/Waste | Entered Factory 14695 | -6/Factory | Accompanied by 18 allies 14803 | -6/Factory | Repaired Arm. Huge Wheel 14871 | -6/Factory | Repaired Centrium Wheel 15297 | -6/Factory | Found Exp. Signal Interpreter 15487 | -6/Factory | Identified exit to Garrison 15491 | -6/Factory | Entered Garrison 15491 | -6/Garrison | Accompanied by 9 allies 15618 | -6/Garrison | Triggered checkpoint 15619 | -6/Garrison | Triggered checkpoint 15679 | -6/Garrison | Destroyed 13 combat bots 15850 | -6/Garrison | Discovered new exit (range 12) 15879 | -6/Garrison | Expanded RIF knowledge: Structural Interface 15935 | -6/Garrison | Garrison Relay disabled 15969 | -6/Garrison | Entered Factory 16196 | -6/Factory | Fabricated Force Lance (x1) 16455 | -6/Factory | Incoming investigation squad redirected 16752 | -6/Factory | Repaired Centrium Wheel 16940 | -6/Factory | Discovered exit to Factory (range 8) 17081 | -6/Factory | Repaired EM Disruption Field 17235 | -6/Factory | Incoming investigation squad redirected 17337 | -6/Factory | Incoming investigation squad redirected 17495 | -6/Factory | Repaired Arm. Huge Wheel 18094 | -6/Factory | Repaired Quantum Capacitor 18435 | -6/Factory | Identified exit to Garrison 18435 | -6/Factory | Entered Garrison 18793 | -6/Garrison | Triggered checkpoint 19044 | -6/Garrison | Discovered exit to Factory (range 8) 19116 | -6/Garrison | Triggered checkpoint 19167 | -6/Garrison | Discovered exit to Factory (range 12) 19193 | -6/Garrison | Expanded RIF knowledge: Alert ID Control 19260 | -6/Garrison | Triggered checkpoint 19360 | -6/Garrison | Garrison Relay disabled 19452 | -6/Garrison | Entered Factory 19452 | -5/Factory | Evolved 2 slots: Utility x2 19757 | -5/Factory | Build established: Botlord-Assassin 20060 | -5/Factory | Build established: Botlord-Mutant 20407 | -5/Factory | Sucked down chute 20407 | -5/Factory | Entered Waste 20408 | -5/Waste | Met a frightened Derelict 20410 | -5/Waste | 1 allies followed down the chute 20417 | -5/Waste | Spotted C-40 Crusher 20437 | -5/Waste | Allies destroyed C-40 Crusher 20442 | -5/Waste | Found Damper Plating 20448 | -5/Waste | Found Damper Plating 20466 | -5/Waste | Spotted C-40 Crusher 20501 | -5/Waste | Spotted C-40 Crusher 20572 | -5/Waste | Spotted C-40 Crusher 20588 | -5/Waste | Allies destroyed C-40 Crusher 20610 | -5/Waste | Spotted C-40 Crusher 20619 | -5/Waste | Allies destroyed C-40 Crusher 20636 | -5/Waste | Allies destroyed C-40 Crusher 20648 | -5/Waste | Spotted C-40 Crusher 20673 | -5/Waste | Destroyed C-40 Crusher 20679 | -5/Waste | Found Damper Plating 20747 | -5/Waste | Destroyed C-40 Crusher 20755 | -5/Waste | Found Damper Plating 20852 | -5/Waste | Warlord forces began an assault 21002 | -5/Waste | Discovered new exit (range 12) 21116 | -5/Waste | Identified exit to Factory 21123 | -5/Waste | Entered Factory 21123 | -5/Factory | Accompanied by 18 allies 21230 | -5/Factory | Identified exit to Upper Caves 21230 | -5/Factory | Identified exit to Extension 21311 | -5/Factory | Discovered new exit (range 9) 21321 | -5/Factory | Identified exit to Factory 21524 | -5/Factory | Entered Extension 21524 | -5/Extension | Accompanied by 16 allies 21599 | -5/Extension | Rescued a captive Derelict 21678 | -5/Extension | Rescued a captive Derelict 21678 | -5/Extension | Rescued a captive Derelict 21681 | -5/Extension | Rescued a captive Derelict 21683 | -5/Extension | Rescued a captive Derelict 21728 | -5/Extension | Rescued a captive Derelict 21779 | -5/Extension | Rescued A7 21812 | -5/Extension | Rescued a captive Derelict 21822 | -5/Extension | Central database locked down 21848 | -5/Extension | Incoming investigation squad redirected 21962 | -5/Extension | Rescued a captive Derelict 22557 | -5/Extension | Discovered exit to Factory (range 10) 22559 | -5/Extension | Discovered new exit (range 6) 22572 | -5/Extension | Identified exit to Cetus 22588 | -5/Extension | Entered Cetus 22588 | -5/Cetus | Accompanied by 11 allies 22593 | -5/Cetus | Acquired a Cetus Manufacturing Module code from A7 22617 | -5/Cetus | Spotted Cetus Guard 22617 | -5/Cetus | Spotted Cetus Guard 22622 | -5/Cetus | Spotted Cetus Guard 22625 | -5/Cetus | Destroyed Cetus Guard 22632 | -5/Cetus | Spotted Cetus Guard 22638 | -5/Cetus | Destroyed Cetus Guard 22638 | -5/Cetus | Destroyed Cetus Guard 22640 | -5/Cetus | Destroyed Cetus Guard 22808 | -5/Cetus | Failed to start Cetus Manufacturing Module 22819 | -5/Cetus | Escorted A7 to Cetus Mainframe 22832 | -5/Cetus | Destroyed A7 22833 | -5/Cetus | Extracted ID and sensor layout for unrecognized location from A7's data core 22870 | -5/Cetus | Discovered new exit (range 16) 22894 | -5/Cetus | Identified exit to Archives 22898 | -5/Cetus | Entered Archives 22898 | -5/Archives | Accompanied by 8 allies 23010 | -5/Archives | Discovered new exit (range 13) 23030 | -5/Archives | Identified exit to Hub_04(d) 23036 | -5/Archives | Entered Hub_04(d) 23036 | -5/Hub_04(d) | Accompanied by 1 ally 23260 | -5/Hub_04(d) | Discovered exit to Factory (range 14) 23400 | -5/Hub_04(d) | Discovered exit to Factory (range 19) 23524 | -5/Hub_04(d) | Build established: Bothacker-Mutant 23606 | -5/Hub_04(d) | Discovered exit to Factory (range 9) 24545 | -5/Hub_04(d) | Network Hub disabled 24565 | -5/Hub_04(d) | Spotted Lightning 24567 | -5/Hub_04(d) | Spotted Lightning 24612 | -5/Hub_04(d) | Spotted Lightning 24638 | -5/Hub_04(d) | Lost 4 parts (1p1n1u1w) 24668 | -5/Hub_04(d) | Destroyed Lightning 24690 | -5/Hub_04(d) | Destroyed Lightning 24736 | -5/Hub_04(d) | Found Prototype Energy Cannon 24743 | -5/Hub_04(d) | Destroyed Lightning 24753 | -5/Hub_04(d) | Found Prototype Energy Cannon 24771 | -5/Hub_04(d) | Found Prototype Energy Cannon 25058 | -5/Hub_04(d) | Spotted Lightning 25068 | -5/Hub_04(d) | Spotted Lightning 25069 | -5/Hub_04(d) | Spotted Lightning 25157 | -5/Hub_04(d) | Destroyed Lightning 25171 | -5/Hub_04(d) | Destroyed Lightning 25189 | -5/Hub_04(d) | Found Prototype Energy Cannon 25196 | -5/Hub_04(d) | Destroyed Lightning 25207 | -5/Hub_04(d) | Found Prototype Energy Cannon 25216 | -5/Hub_04(d) | Found Prototype Device 25216 | -5/Hub_04(d) | Identified Exp. Phase Shifter 25227 | -5/Hub_04(d) | Found Prototype Device 25241 | -5/Hub_04(d) | Found Exp. Phase Shifter 25360 | -5/Hub_04(d) | Spotted Lightning 25360 | -5/Hub_04(d) | Spotted Lightning 25362 | -5/Hub_04(d) | Spotted Lightning 25438 | -5/Hub_04(d) | Destroyed Lightning 25444 | -5/Hub_04(d) | Destroyed Lightning 25461 | -5/Hub_04(d) | Found Prototype Energy Cannon 25461 | -5/Hub_04(d) | Identified EMDS (x6) 25496 | -5/Hub_04(d) | Destroyed Lightning 25510 | -5/Hub_04(d) | Found EMDS 25650 | -5/Hub_04(d) | Network Hub disabled 25688 | -5/Hub_04(d) | Identified EM Dispersion Field 25802 | -5/Hub_04(d) | Network Hub disabled 25802 | -5/Hub_04(d) | Spotted Lightning 25842 | -5/Hub_04(d) | Spotted Lightning 25846 | -5/Hub_04(d) | Spotted Lightning 25868 | -5/Hub_04(d) | Destroyed Lightning 25874 | -5/Hub_04(d) | Found EMDS 25883 | -5/Hub_04(d) | Destroyed Lightning 25911 | -5/Hub_04(d) | Destroyed Lightning 25990 | -5/Hub_04(d) | Found EM Dispersion Field 25996 | -5/Hub_04(d) | Found EM Dispersion Field 26036 | -5/Hub_04(d) | First assault squad dispatched 26094 | -5/Hub_04(d) | Network Hub disabled 26112 | -5/Hub_04(d) | Entered Factory 26112 | -4/Factory | Evolved 2 slots: Power x1, Utility x1 26131 | -4/Factory | Build established: Hauler-Mutant 26398 | -4/Factory | Sucked down chute 26398 | -4/Factory | Entered Waste 26413 | -4/Waste | EMP discharged 26423 | -4/Waste | Spotted C-40 Crusher 26454 | -4/Waste | Spotted C-40 Crusher 26493 | -4/Waste | Spotted C-40 Crusher 26495 | -4/Waste | Spotted C-40 Crusher 26513 | -4/Waste | EMP discharged 26613 | -4/Waste | EMP discharged 26632 | -4/Waste | Spotted C-40 Crusher 26637 | -4/Waste | Spotted C-40 Crusher 26693 | -4/Waste | Crushed by Compactor (1 part destroyed) 26713 | -4/Waste | EMP discharged 26715 | -4/Waste | Destroyed C-40 Crusher 26750 | -4/Waste | Found Damper Plating 26807 | -4/Waste | Destroyed C-40 Crusher 26813 | -4/Waste | EMP discharged 26829 | -4/Waste | Destroyed C-40 Crusher 26839 | -4/Waste | Found Damper Plating 26913 | -4/Waste | EMP discharged 26918 | -4/Waste | Destroyed C-40 Crusher 26949 | -4/Waste | Destroyed C-40 Crusher 27013 | -4/Waste | EMP discharged 27055 | -4/Waste | Destroyed C-40 Crusher 27113 | -4/Waste | EMP discharged 27137 | -4/Waste | Met Warlord forces unprepared to attack 27213 | -4/Waste | EMP discharged 27243 | -4/Waste | Discovered new exit (range 10) 27260 | -4/Waste | Identified exit to Factory 27266 | -4/Waste | Entered Factory 27266 | -4/Factory | Accompanied by 18 allies 27747 | -4/Factory | Garrison activated, responded to threat 28016 | -4/Factory | First assault squad dispatched 28154 | -4/Factory | Incoming assault squad redirected 28406 | -4/Factory | Spotted B-86 Titan 28609 | -4/Factory | Discovered new exit (range 5) 28723 | -4/Factory | Destroyed 7 combat bots 28837 | -4/Factory | Discovered new exit (range 12) 28931 | -4/Factory | Discovered new exit (range 7) 29201 | -4/Factory | Identified exit to Upper Caves 29201 | -4/Factory | Identified exit to Armory 29453 | -4/Factory | Lost 3 parts (1p1n1u) 29607 | -4/Factory | Lost 4 parts (1n2u1w) 29661 | -4/Factory | Core integrity fell below 50% 29685 | -4/Factory | Destroyed 7 combat bots 29690 | -4/Factory | Core integrity fell below 20% 29717 | -4/Factory | Lost 17 parts (4p7n5u1w) 29828 | -4/Factory | Entered Armory 30278 | -4/Armory | Destroyed by L-61 Swordsman with Power Sword Last Messages --------------- 30248_ P-70 Sage destroyed. 30250_ EMDS Slug penetrates Component Storage. 30250_ Component Storage disabled. 30252_ EMDS Slug penetrates L-61 Swordsman. 30252_ Particle Reactor destroyed. 30254_ EMDS Slug penetrates Component Storage. 30256_ EMDS Slug penetrates Wall. 30258_ EMDS Slug penetrates L-61 Swordsman. 30258_ G-67 Veteran suffers critical hit. 30258_ Destroyed Flexi-carbon Leg. 30260_ EMDS Slug penetrates L-61 Swordsman. 30260_ P-70 Sage resets D-63 Destroyer, system corruption cleaned. 30260_ Quantum Reactor severed. 30262_ Imp. Weapon Shielding destroyed. 30264_ P-70 Sage resets L-61 Swordsman, system corruption cleaned. 30265_ NN/ S2OPU,TZZ8K=1WZW GRJS6ZA8PB 30265_ EMDS destroyed. 30275_ P-70 Sage resets L-61 Swordsman, system corruption cleaned. 30277_ Imp. Core Shielding destroyed. 30277_ P-70 Sage resets G-67 Veteran, system corruption cleaned. Map ----- +----------------------------------------------------+ | ?????????????????????????????????????????????????? | | ?????????????????????????????????????????????????? | | ?????????????????????????????????????????????????? | | ?????????????????????????????????????????????????? | | ?????????????????????????????????????????????????? | | ?????????????????????????????????????????????????? | | ?????????????????????????????????????????????????? | | ?????????????????????????????????????????????????? | | ??????????????????? ???????????????????????? | | ????????????????? #??????????????????????? | | ??????????????# == [#??????????????????????? | | ??????????????# = !%#????????????########### | | ??????????????# !=%#???????????? # | | ??????????##### ![####????????? # | | ??????????? ?????????? # | | ???????????? #?????????? # | | ?????????????# #?????????? # | | ?????????????# ###???????? # | | ?????????????# ????????? # | | ?????????????# #?????????? # | | ?????????????# =! ^ #????????###+######### | | ?????????????# !!%=* = ########## * # | | ?????????????# *[=%/%= *# | | ?????????????# *!%[ *!* += | | ?????????????# ##;#################= [#! | | ??????????????????#!d=|%l@l #?###### | | ??????????????????#= =p "" """"" #??????# | | ?????????????? ; !"""""g""""?????????# | | ?????????????###### """"" """??????????# | | ??????????????????# g ??????????# | | ??????????????????# """" """??????????# | | ??????????????????#[ """"" """??????????# | | ??????????????????# """"" "????????????# | | ??????????????????# ????????????????######## | | ??????????????????#######????????????????????????? | | | | | | | | | | | | | | | | | | | | | | | | | | | | | | | +----------------------------------------------------+ Best States ------------- Heat Dissipation 74 Energy Generation 45 Energy Capacity 1400 Matter Stores 300 Matter Capacity 300 Sight Range 16 Robot Scan Range 20 Terrain Scan Range 24 Terrain Scan Density 210 Armor Coverage 1425 Resistance: KI 30 Resistance: TH 10 Resistance: EM 90 Core Shielding 30 Weapon Shielding 90 Evasion (%) 40 Recoil Reduction 2 Offensive Hacking 20 Defensive Hacking 14 Item Schematics ----------------- EM Disruption Field | -7/Factory | Scanalyzed Combat Drone Bay | -7/Data Miner | Free Lgt. Regenerative Plating | -7/Data Miner | Free Exp. Flexi-carbon Leg | -7/Data Miner | Free Exp. ECM Suite | -7/Data Miner | Free Mni. Smartbomb Launcher | -7/Data Miner | Free Kinetic Spear | -7/Data Miner | Free Hcp. Storage Unit | -5/Extension | Hacked Robot Schematics ------------------ S-27 Virus | -7/Data Miner | Free G-50 Soldier | -7/Data Miner | Free I-36 Angel | -7/Data Miner | Free H-66 Slayer | -7/Data Miner | Free Fabricated ------------ Force Lance | x1 | -6/Factory | Preloaded Alien Tech Used ----------------- None Achievements -------------- None Challenges ------------ None Game ------ Seed BurstFireFlakker Manual? 0 Play Time 04:41:09 Cumulative 223.6 hours Start 2019.11.30 @ 00:47:22 End 2019.11.30 @ 23:16:28 Sessions 5 Manual Loads 0 Difficulty Rogue Special Mode None Game No. 189 Rogue 179 Adventurer 10 Explorer 0 Win Type - Total 4 Types 3/0/0/1/0/0/0 Lore% 66 Gallery% 83 Achievement% 65 Wizard Run 0 Options --------- ASCII 0 Keyboard 1 Movement Numpad Keybinds 0 Fullscreen 2 Font 18/SmallcapsGlow Map View 76x50 Tactical HUD 1 Map Filters NONE Filters NONE Steam 1 RUN: c224ee59-4807-483c-a2f9-7a707e21877a